fUSD/lending_fUSD_20241023
["ID","MTS","AMOUNT","RATE_DAILY","PERIOD"]
[340684638,1729680416035,-750.0,0.00048287,120]
[340684639,1729680416076,-1000.0,0.000483,120]
[340684640,1729680416116,-1800.0,0.000484,120]
[340684641,1729680416156,-500.0,0.00048674,120]
[340684642,1729680416194,-2625.0161321,0.00048678,68]
[340684643,1729680416241,-181.1448742,0.00048713,33]
[340684644,1729680416279,-45403.16667162,0.000488,30]
[340684645,1729680416320,-205.0,0.0004883,30]
[340684646,1729680416360,-205.0,0.0004883,30]
[340684647,1729680416398,-205.0,0.0004883,30]
[340684648,1729680416436,-165.958973,0.00048855,30]
[340684649,1729680416474,-211.0,0.0004887,30]
[340684650,1729680416513,-227.0,0.0004887,30]
[340684651,1729680416550,-1800.0,0.00048948,120]
[340684652,1729680416592,-50000.0,0.00049,49]
[340684653,1729680416634,-50000.0,0.00049,59]
[340684654,1729680416673,-3000.0,0.00049,120]
[340684655,1729680416710,-49974.91200558,0.00049,120]
[340684656,1729680416749,-38984.53172747,0.00049,120]
[340684657,1729680416787,-25000.0,0.00049,120]
[340684658,1729680416827,-857.28525924,0.00049,61]
[340684659,1729680416864,-442.17187462,0.00049,120]
[340684660,1729680416903,-219.56,0.00049,120]
[340684661,1729680416941,-3535.0,0.00049,60]
[340684662,1729680416985,-900.0,0.00049109,120]
[340684663,1729680417023,-500.0,0.00049222,120]
[340684664,1729680417060,-500.0,0.00049315,120]
[340684665,1729680417098,-500.0,0.00049315,120]
[340684666,1729680417134,-500.0,0.00049315,120]
[340684667,1729680417175,-500.0,0.00049315,120]
[340684668,1729680417214,-500.0,0.00049315,120]
[340684669,1729680417252,-500.0,0.00049315,120]
[340684670,1729680417292,-200.0,0.00049315,120]
[340684671,1729680417333,-503.01793209,0.00049315,120]
[340684672,1729680417373,-500.0,0.00049315,120]
[340684673,1729680417412,-500.0,0.00049315,120]
[340684674,1729680417450,-568.6836392,0.00049315,120]
[340684675,1729680417497,-500.0,0.00049315,120]
[340684676,1729680417537,-500.0,0.00049315,120]
[340684677,1729680417576,-500.0,0.00049315,120]
[340684678,1729680417614,-500.0,0.00049315,120]
[340684679,1729680417652,-500.0,0.00049315,120]
[340684680,1729680417689,-1926.7,0.00049315,120]
[340684681,1729680417729,-1926.7,0.00049315,120]
[340684682,1729680417765,-1926.7,0.00049315,120]
[340684683,1729680417802,-1926.7,0.00049315,120]
[340684684,1729680417840,-1926.7,0.00049315,120]
[340684685,1729680417889,-1926.7,0.00049315,120]
[340684686,1729680417933,-1926.7,0.00049315,120]
[340684687,1729680417978,-1926.7,0.00049315,120]
[340684688,1729680418167,-1926.7,0.00049315,120]
[340684689,1729680418208,-1926.7,0.00049315,120]
[340684690,1729680418249,-1926.7,0.00049315,120]
[340684691,1729680418289,-1926.7,0.00049315,120]
[340684692,1729680418332,-1926.7,0.00049315,120]
[340684693,1729680418376,-1926.7,0.00049315,120]
[340684694,1729680418418,-1926.7,0.00049315,120]
[340684695,1729680418457,-1926.7,0.00049315,120]
[340684696,1729680418499,-1926.7,0.00049315,120]
[340684697,1729680418539,-1926.7,0.00049315,120]
[340684698,1729680418582,-1926.7,0.00049315,120]
[340684699,1729680418622,-1926.7,0.00049315,120]
[340684700,1729680418663,-1926.7,0.00049315,120]
[340684701,1729680418704,-1926.7,0.00049315,120]
[340684702,1729680418746,-1926.7,0.00049315,120]
[340684703,1729680418785,-1926.80772663,0.00049315,120]
[340684704,1729680418823,-1250.0,0.00049315,120]
[340684705,1729680418860,-500.0,0.00049315,120]
[340684706,1729680418896,-500.0,0.00049315,120]
[340684707,1729680418933,-498.98503,0.00049315,120]
[340684708,1729680418971,-500.0,0.00049315,120]
[340684709,1729680419010,-150.0,0.00049315,120]
[340684710,1729680419046,-1369.54,0.00049315,120]
[340684711,1729680419084,-500.0,0.00049315,120]
[340684712,1729680419121,-500.0,0.00049315,120]
[340684713,1729680419160,-500.0,0.00049315,120]
[340684714,1729680419198,-500.0,0.00049315,120]
[340684715,1729680419239,-500.0,0.00049315,120]
[340684716,1729680419278,-1040.64,0.00049315,120]
[340684717,1729680419323,-500.0,0.00049315,120]
[340684718,1729680419363,-1829.92,0.00049315,120]
[340684719,1729680419403,-500.0,0.00049315,120]
[340684720,1729680419439,-500.0,0.00049315,120]
[340684721,1729680419479,-300.0,0.00049315,120]
[340684722,1729680419516,-1589.98,0.00049315,120]
[340684723,1729680419554,-4864.61,0.00049315,120]
[340684724,1729680419593,-513.66886915,0.00049315,120]
[340684725,1729680419635,-500.0,0.00049315,120]
[340684726,1729680419677,-1363.39,0.00049315,120]
[340684727,1729680419717,-500.0,0.00049315,120]
[340684728,1729680419754,-500.0,0.00049315,120]
[340684729,1729680419796,-500.0,0.00049315,120]
[340684730,1729680419836,-500.0,0.00049315,120]
[340684731,1729680419876,-500.0,0.00049315,120]
[340684732,1729680419915,-314.79,0.00049315,120]
[340684733,1729680419958,-500.0,0.00049315,120]
[340684734,1729680419995,-500.0,0.00049315,120]
[340684735,1729680420034,-1000.0,0.00049315,120]
[340684736,1729680420075,-553.26,0.00049315,120]
[340684737,1729680420116,-1000.0,0.00049315,120]
[340684738,1729680420157,-1506.83400932,0.00049315,120]
[340684739,1729680420199,-500.0,0.00049315,120]
[340684740,1729680420242,-500.0,0.00049315,60]
[340684741,1729680420283,-500.0,0.00049315,120]
[340684742,1729680420326,-565.55,0.00049315,120]
[340684743,1729680420369,-600.0,0.00049315,120]
[340684744,1729680420410,-500.0,0.00049315,120]
[340684745,1729680420455,-1486.4,0.00049315,120]
[340684746,1729680420497,-907.53,0.00049315,120]
[340684747,1729680420540,-500.0,0.00049315,120]
[340684748,1729680420582,-500.0,0.00049315,120]
[340684749,1729680420622,-300.0,0.00049315,120]
[340684750,1729680420664,-1000.0,0.00049315,120]
[340684751,1729680420705,-500.0,0.00049315,120]
[340684752,1729680420746,-150.0,0.00049315,120]
[340684753,1729680420786,-500.0,0.00049315,120]
[340684754,1729680420828,-500.0,0.00049315,120]
[340684755,1729680420868,-500.0,0.00049315,120]
[340684756,1729680420908,-1000.0,0.00049315,120]
[340684757,1729680420947,-1500.0,0.00049315,120]
[340684758,1729680420986,-1000.0,0.00049315,120]
[340684759,1729680421025,-801.41,0.00049315,120]
[340684760,1729680421063,-562.4,0.00049315,90]
[340684761,1729680421101,-500.0,0.00049315,30]
[340684762,1729680421139,-156993.0,0.0004944,30]
[340684763,1729680421176,-165.958973,0.00049451,30]
[340684764,1729680421214,-1800.0,0.00049496,120]
[340684765,1729680421252,-500.0,0.0004977,120]
[340684766,1729680421291,-500.0,0.00049863,120]
[340684767,1729680421331,-500.0,0.00049863,120]
[340684768,1729680421369,-500.0,0.00049863,120]
[340684769,1729680421409,-500.0,0.00049863,120]
[340684770,1729680421450,-500.0,0.00049863,120]
[340684771,1729680421488,-500.0,0.00049863,120]
[340684772,1729680421527,-500.0,0.00049863,120]
[340684773,1729680421566,-500.0,0.00049863,120]
[340684774,1729680421605,-500.0,0.00049863,120]
[340684775,1729680421643,-500.0,0.00049863,120]
[340684776,1729680421681,-500.76659769,0.00049863,120]
[340684777,1729680421892,-528.37702791,0.00049863,120]
[340684778,1729680421937,-500.0,0.00049863,120]
[340684779,1729680421979,-1250.0,0.00049863,120]
[340684780,1729680422022,-500.0,0.00049863,120]
[340684781,1729680422067,-500.0,0.00049863,120]
[340684782,1729680422112,-500.0,0.00049863,120]
[340684783,1729680422152,-1369.54,0.00049863,120]
[340684784,1729680422196,-500.0,0.00049863,120]
[340684785,1729680422241,-500.0,0.00049863,120]
[340684786,1729680422281,-1040.64,0.00049863,120]
[340684787,1729680422319,-500.0,0.00049863,120]
[340684788,1729680422359,-1829.92,0.00049863,120]
[340684789,1729680422398,-158.139142,0.00049863,120]
[340684790,1729680422436,-500.0,0.00049863,120]
[340684791,1729680422476,-1589.98,0.00049863,120]
[340684792,1729680422517,-4864.61,0.00049863,120]
[340684793,1729680422555,-500.0,0.00049863,120]
[340684794,1729680422596,-1363.39,0.00049863,120]
[340684795,1729680422636,-500.0,0.00049863,120]
[340684796,1729680422677,-500.0,0.00049863,120]
[340684797,1729680422717,-500.0,0.00049863,120]
[340684798,1729680422759,-500.0,0.00049863,120]
[340684799,1729680422800,-500.0,0.00049863,120]
[340684800,1729680422842,-314.79,0.00049863,120]
[340684801,1729680422881,-500.0,0.00049863,120]
[340684802,1729680422921,-500.0,0.00049863,120]
[340684803,1729680422959,-1000.0,0.00049863,120]
[340684804,1729680423000,-553.26,0.00049863,120]
[340684805,1729680423044,-1000.0,0.00049863,120]
[340684806,1729680423087,-500.0,0.00049863,120]
[340684807,1729680423128,-500.0,0.00049863,60]
[340684808,1729680423168,-500.0,0.00049863,120]
[340684809,1729680423208,-565.55,0.00049863,120]
[340684810,1729680423251,-600.0,0.00049863,120]
[340684811,1729680423291,-500.0,0.00049863,120]
[340684812,1729680423335,-1486.4,0.00049863,120]
[340684813,1729680423377,-907.53,0.00049863,120]
[340684814,1729680423419,-263.51066451,0.00049863,120]
[340684815,1729680423460,-500.0,0.00049863,120]
[340684816,1729680423499,-300.0,0.00049863,120]
[340684817,1729680423539,-1000.0,0.00049863,120]
[340684818,1729680423578,-500.0,0.00049863,120]
[340684819,1729680423619,-150.0,0.00049863,120]
[340684820,1729680423658,-498.95005,0.00049863,120]
[340684821,1729680423699,-511.4726453,0.00049863,120]
[340684822,1729680423741,-500.0,0.00049863,120]
[340684823,1729680423786,-1000.0,0.00049863,120]
[340684824,1729680423824,-1000.0,0.00049863,120]
[340684825,1729680423869,-801.41,0.00049863,120]
[340684826,1729680423909,-562.4,0.00049863,90]
[340684827,1729680423952,-1050.0,0.00049931,120]
[340684828,1729680423997,-205.0,0.0004999,30]
[340684829,1729680424038,-205.0,0.0004999,30]
[340684830,1729680424078,-205.0,0.0004999,30]
[340684831,1729680424121,-211.0,0.0004999,30]
[340684832,1729680424161,-227.0,0.0004999,30]
[340684833,1729680424205,-500.0,0.00049999,31]
[340684834,1729680424246,-500.0,0.00049999,31]
[340684835,1729680424286,-232.15634564,0.00049999,120]
[340684836,1729680424328,-221.72813065,0.00049999,31]
[340684837,1729680424369,-428.34222932,0.00049999,120]
[340684838,1729680424411,-500.0,0.00049999,120]
[340684839,1729680424451,-500.0,0.00049999,120]
[340684840,1729680424494,-500.0,0.00049999,120]
[340684841,1729680424536,-500.0,0.00049999,120]
[340684842,1729680424577,-500.0,0.00049999,120]
[340684843,1729680424618,-466.18441304,0.00049999,120]
[340684844,1729680424659,-500.0,0.00049999,120]
[340684845,1729680424702,-500.0,0.00049999,120]
[340684846,1729680424744,-500.0,0.00049999,120]
[340684847,1729680424790,-50000.0,0.0005,50]
[340684848,1729680424834,-50000.0,0.0005,60]
[340684849,1729680424876,-150.0,0.0005,120]
[340684850,1729680424918,-500.0,0.0005,120]
[340684851,1729680424963,-1000.0,0.0005,120]
[340684852,1729680425003,-1000.0,0.0005,120]
[340684853,1729680425044,-1000.0,0.0005,120]
[340684854,1729680425083,-1000.0,0.0005,120]
[340684855,1729680425121,-593.0,0.0005,120]
[340684856,1729680425159,-159.0,0.0005,120]
[340684857,1729680425197,-197.680146,0.0005,120]
[340684858,1729680425239,-300.46268289,0.0005,45]
[340684859,1729680425280,-350.0,0.0005,120]
[340684860,1729680425321,-1000.0,0.0005,120]
[340684861,1729680425363,-566.04,0.0005,120]
[340684862,1729680425403,-937.0,0.0005,30]
[340684863,1729680425586,-191.89,0.0005,120]
[340684864,1729680425628,-2082.7379,0.0005,30]
[340684865,1729680425672,-1606.1731,0.0005,30]
[340684866,1729680425710,-1446.8114,0.0005,30]
[340684867,1729680425749,-1800.0,0.00050044,120]
[340684868,1729680425789,-165.958973,0.00050046,30]
[340684869,1729680425827,-150.19,0.00050057,120]
[340684870,1729680425876,-2000.0,0.00050124,120]
[340684871,1729680425914,-2000.0,0.00050124,120]
[340684872,1729680425955,-572.07307949,0.00050124,120]
[340684873,1729680425993,-500.0,0.00050318,120]
[340684874,1729680426033,-929.7,0.0005041,120]
[340684875,1729680426072,-500.0,0.0005041,120]
[340684876,1729680426113,-500.0,0.0005041,120]
[340684877,1729680426153,-500.0,0.0005041,120]
[340684878,1729680426195,-500.0,0.0005041,120]
[340684879,1729680426236,-500.0,0.0005041,120]
[340684880,1729680426280,-500.0,0.0005041,120]
[340684881,1729680426326,-568.2014127,0.0005041,120]
[340684882,1729680426370,-311.31,0.0005041,120]
[340684883,1729680426410,-500.0,0.0005041,120]
[340684884,1729680426452,-500.0,0.0005041,120]
[340684885,1729680426494,-1250.0,0.0005041,120]
[340684886,1729680426534,-500.0,0.0005041,120]
[340684887,1729680426574,-500.0,0.0005041,120]
[340684888,1729680426613,-500.0,0.0005041,120]
[340684889,1729680426650,-1369.54,0.0005041,120]
[340684890,1729680426688,-500.0,0.0005041,120]
[340684891,1729680426724,-500.0,0.0005041,120]
[340684892,1729680426762,-1040.64,0.0005041,120]
[340684893,1729680426800,-500.0,0.0005041,120]
[340684894,1729680426838,-1829.92,0.0005041,120]
[340684895,1729680426877,-500.0,0.0005041,120]
[340684896,1729680426914,-1589.98,0.0005041,120]
[340684897,1729680426953,-4864.61,0.0005041,120]
[340684898,1729680426991,-1363.39,0.0005041,120]
[340684899,1729680427030,-500.0,0.0005041,120]
[340684900,1729680427068,-500.0,0.0005041,120]
[340684901,1729680427106,-500.0,0.0005041,120]
[340684902,1729680427144,-314.79,0.0005041,120]
[340684903,1729680427184,-500.0,0.0005041,120]
[340684904,1729680427223,-500.0,0.0005041,120]
[340684905,1729680427263,-1000.0,0.0005041,120]
[340684906,1729680427304,-553.26,0.0005041,120]
[340684907,1729680427348,-1000.0,0.0005041,120]
[340684908,1729680427389,-500.0,0.0005041,120]
[340684909,1729680427430,-500.0,0.0005041,60]
[340684910,1729680427469,-500.0,0.0005041,120]
[340684911,1729680427507,-565.55,0.0005041,120]
[340684912,1729680427543,-600.0,0.0005041,120]
[340684913,1729680427579,-500.0,0.0005041,120]
[340684914,1729680427618,-1486.4,0.0005041,120]
[340684915,1729680427658,-907.53,0.0005041,120]
[340684916,1729680427696,-500.0,0.0005041,120]
[340684917,1729680427734,-300.0,0.0005041,120]
[340684918,1729680427774,-1000.0,0.0005041,120]
[340684919,1729680427811,-500.0,0.0005041,120]
[340684920,1729680427847,-150.0,0.0005041,120]
[340684921,1729680427885,-500.0,0.0005041,120]
[340684922,1729680427921,-1000.0,0.0005041,120]
[340684923,1729680427956,-1000.0,0.0005041,120]
[340684924,1729680427993,-801.41,0.0005041,120]
[340684925,1729680428030,-562.4,0.0005041,90]
[340684926,1729680428066,-1800.0,0.00050592,120]
[340684927,1729680428103,-181.1448742,0.00050619,41]
[340684928,1729680428139,-211.0,0.0005065,30]
[340684929,1729680428179,-208.0,0.0005065,30]
[340684930,1729680428217,-424.7,0.00050685,30]
[340684931,1729680428257,-1200.0,0.00050753,120]
[340684932,1729680428297,-15453.95464711,0.00050845,30]
[340684933,1729680428341,-500.0,0.00050866,120]
[340684934,1729680428378,-929.7,0.00050958,120]
[340684935,1729680428418,-500.0,0.00050958,120]
[340684936,1729680428456,-500.0,0.00050958,120]
[340684937,1729680428498,-500.0,0.00050958,120]
[340684938,1729680428537,-503.35093545,0.00050958,120]
[340684939,1729680428577,-500.0,0.00050958,120]
[340684940,1729680428616,-500.0,0.00050958,120]
[340684941,1729680428656,-601.69793405,0.00050958,120]
[340684942,1729680428693,-500.0,0.00050958,120]
[340684943,1729680428734,-1250.0,0.00050958,120]
[340684944,1729680428773,-500.0,0.00050958,120]
[340684945,1729680428812,-500.0,0.00050958,120]
[340684946,1729680428996,-500.0,0.00050958,120]
[340684947,1729680429035,-1369.54,0.00050958,120]
[340684948,1729680429073,-390.6,0.00050958,120]
[340684949,1729680429111,-500.0,0.00050958,120]
[340684950,1729680429151,-1040.64,0.00050958,120]
[340684951,1729680429189,-500.0,0.00050958,120]
[340684952,1729680429225,-1829.92,0.00050958,120]
[340684953,1729680429263,-500.0,0.00050958,120]
[340684954,1729680429300,-1589.98,0.00050958,120]
[340684955,1729680429337,-4864.61,0.00050958,120]
[340684956,1729680429376,-1363.39,0.00050958,120]
[340684957,1729680429413,-500.0,0.00050958,120]
[340684958,1729680429450,-500.0,0.00050958,120]
[340684959,1729680429488,-500.0,0.00050958,120]
[340684960,1729680429530,-314.79,0.00050958,120]
[340684961,1729680429569,-500.0,0.00050958,120]
[340684962,1729680429609,-500.0,0.00050958,120]
[340684963,1729680429647,-1000.0,0.00050958,120]
[340684964,1729680429687,-553.26,0.00050958,120]
[340684965,1729680429723,-1000.0,0.00050958,120]
[340684966,1729680429762,-500.0,0.00050958,120]
[340684967,1729680429800,-499.1084791,0.00050958,60]
[340684968,1729680429840,-500.0,0.00050958,120]
[340684969,1729680429879,-565.55,0.00050958,120]
[340684970,1729680429916,-600.0,0.00050958,120]
[340684971,1729680429955,-500.0,0.00050958,120]
[340684972,1729680429994,-1486.4,0.00050958,120]
[340684973,1729680430033,-907.53,0.00050958,120]
[340684974,1729680430069,-500.0,0.00050958,120]
[340684975,1729680430108,-300.0,0.00050958,120]
[340684976,1729680430146,-1000.0,0.00050958,120]
[340684977,1729680430186,-500.0,0.00050958,120]
[340684978,1729680430223,-150.0,0.00050958,120]
[340684979,1729680430264,-231.04708558,0.00050958,120]
[340684980,1729680430301,-1000.0,0.00050958,120]
[340684981,1729680430342,-990.5039381,0.00050958,120]
[340684982,1729680430381,-801.41,0.00050958,120]
[340684983,1729680430422,-562.4,0.00050958,90]
[340684984,1729680430465,-50000.0,0.00051,51]
[340684985,1729680430508,-50000.0,0.00051,61]
[340684986,1729680430549,-1471.77894873,0.0005114,120]
[340684987,1729680430591,-211.0,0.0005119,30]
[340684988,1729680430632,-205.0,0.0005119,30]
[340684989,1729680430672,-500.0,0.00051414,120]
[340684990,1729680430712,-929.7,0.00051506,120]
[340684991,1729680430750,-500.0,0.00051506,120]
[340684992,1729680430789,-500.0,0.00051506,120]
[340684993,1729680430830,-500.0,0.00051506,120]
[340684994,1729680430868,-500.0,0.00051506,120]
[340684995,1729680430908,-500.0,0.00051506,120]
[340684996,1729680430944,-500.0,0.00051506,120]
[340684997,1729680430983,-1250.0,0.00051506,120]
[340684998,1729680431021,-500.0,0.00051506,120]
[340684999,1729680431060,-500.0,0.00051506,120]
[340685000,1729680431098,-500.0,0.00051506,120]
[340685001,1729680431136,-1369.54,0.00051506,120]
[340685002,1729680431172,-500.0,0.00051506,120]
[340685003,1729680431210,-1040.64,0.00051506,120]
[340685004,1729680431249,-500.0,0.00051506,120]
[340685005,1729680431288,-1829.92,0.00051506,120]
[340685006,1729680431329,-500.0,0.00051506,120]
[340685007,1729680431375,-1589.98,0.00051506,120]
[340685008,1729680431412,-4864.61,0.00051506,120]
[340685009,1729680431446,-1363.39,0.00051506,120]
[340685010,1729680431479,-500.0,0.00051506,120]
[340685011,1729680431513,-500.0,0.00051506,120]
[340685012,1729680431549,-500.0,0.00051506,120]
[340685013,1729680431583,-314.79,0.00051506,120]
[340685014,1729680431620,-500.0,0.00051506,120]
[340685015,1729680431656,-500.0,0.00051506,120]
[340685016,1729680431695,-1000.0,0.00051506,120]
[340685017,1729680431730,-553.26,0.00051506,120]
[340685018,1729680431769,-1000.0,0.00051506,120]
[340685019,1729680431805,-500.0,0.00051506,120]
[340685020,1729680431844,-500.0,0.00051506,120]
[340685021,1729680431884,-565.55,0.00051506,120]
[340685022,1729680431923,-600.0,0.00051506,120]
[340685023,1729680431964,-500.0,0.00051506,120]
[340685024,1729680432004,-1486.4,0.00051506,120]
[340685025,1729680432044,-907.53,0.00051506,120]
[340685026,1729680432218,-500.0,0.00051506,120]
[340685027,1729680432262,-300.0,0.00051506,120]
[340685028,1729680432302,-1000.0,0.00051506,120]
[340685029,1729680432344,-500.0,0.00051506,120]
[340685030,1729680432383,-150.0,0.00051506,120]
[340685031,1729680432419,-1000.0,0.00051506,120]
[340685032,1729680432457,-801.41,0.00051506,120]
[340685033,1729680432495,-562.4,0.00051506,90]
[340685034,1729680432533,-1350.0,0.00051575,120]
[340685035,1729680432571,-500.0,0.00051962,120]
[340685036,1729680432609,-1031.35302297,0.00051979,120]
[340685037,1729680432652,-50000.0,0.00052,52]
[340685038,1729680432695,-50000.0,0.00052,62]
[340685039,1729680432735,-6729.16410005,0.00052,120]
[340685040,1729680432772,-350.0,0.00052,120]
[340685041,1729680432813,-250.0,0.00052,120]
[340685042,1729680432849,-100068.99783633,0.00052,120]
[340685043,1729680432888,-929.7,0.00052054,120]
[340685044,1729680432925,-500.0,0.00052054,120]
[340685045,1729680432965,-503.67087337,0.00052054,120]
[340685046,1729680433008,-500.0,0.00052054,120]
[340685047,1729680433047,-228.76,0.00052054,120]
[340685048,1729680433084,-500.0,0.00052054,120]
[340685049,1729680433124,-1000.0,0.00052054,120]
[340685050,1729680433161,-1000.0,0.00052054,120]
[340685051,1729680433200,-1000.0,0.00052054,120]
[340685052,1729680433239,-1000.0,0.00052054,120]
[340685053,1729680433279,-1000.0,0.00052054,120]
[340685054,1729680433317,-1000.0,0.00052054,120]
[340685055,1729680433355,-500.0,0.00052054,120]
[340685056,1729680433393,-1250.0,0.00052054,120]
[340685057,1729680433430,-493.91018,0.00052054,120]
[340685058,1729680433469,-500.0,0.00052054,120]
[340685059,1729680433509,-500.0,0.00052054,120]
[340685060,1729680433549,-1369.54,0.00052054,120]
[340685061,1729680433589,-500.0,0.00052054,120]
[340685062,1729680433629,-1040.64,0.00052054,120]
[340685063,1729680433668,-500.0,0.00052054,120]
[340685064,1729680433708,-1829.92,0.00052054,120]
[340685065,1729680433750,-500.0,0.00052054,120]
[340685066,1729680433790,-1589.98,0.00052054,120]
[340685067,1729680433829,-4864.61,0.00052054,120]
[340685068,1729680433870,-1363.39,0.00052054,120]
[340685069,1729680433907,-500.0,0.00052054,120]
[340685070,1729680433944,-500.0,0.00052054,120]
[340685071,1729680433982,-500.0,0.00052054,120]
[340685072,1729680434019,-314.79,0.00052054,120]
[340685073,1729680434059,-500.0,0.00052054,120]
[340685074,1729680434098,-520.18626273,0.00052054,120]
[340685075,1729680434138,-1000.0,0.00052054,120]
[340685076,1729680434179,-553.26,0.00052054,120]
[340685077,1729680434220,-1000.0,0.00052054,120]
[340685078,1729680434258,-500.0,0.00052054,120]
[340685079,1729680434296,-500.0,0.00052054,120]
[340685080,1729680434339,-565.55,0.00052054,120]
[340685081,1729680434376,-600.0,0.00052054,120]
[340685082,1729680434416,-500.0,0.00052054,120]
[340685083,1729680434457,-1486.4,0.00052054,120]
[340685084,1729680434498,-907.53,0.00052054,120]
[340685085,1729680434538,-500.0,0.00052054,120]
[340685086,1729680434579,-300.0,0.00052054,120]
[340685087,1729680434617,-1000.0,0.00052054,120]
[340685088,1729680434656,-500.0,0.00052054,120]
[340685089,1729680434695,-154.39181466,0.00052054,120]
[340685090,1729680434733,-1000.0,0.00052054,120]
[340685091,1729680434772,-1500.0,0.00052054,120]
[340685092,1729680434811,-801.41,0.00052054,120]
[340685093,1729680434851,-562.4,0.00052054,90]
[340685094,1729680434890,-274.632,0.00052184,95]
[340685095,1729680434932,-211.0,0.0005226,30]
[340685096,1729680434973,-208.0,0.0005226,30]
[340685097,1729680435017,-291.45,0.00052329,30]
[340685098,1729680435057,-151.45,0.00052329,30]
[340685099,1729680435101,-1500.0,0.00052396,120]
[340685100,1729680435142,-34000.0,0.000525,120]
[340685101,1729680435185,-937.0,0.000525,30]
[340685102,1729680435224,-308.27597494,0.0005251,120]
[340685103,1729680435265,-181.1448742,0.00052525,48]
[340685104,1729680435485,-211.0,0.0005253,30]
[340685105,1729680435530,-205.0,0.0005253,30]
[340685106,1729680435571,-200.0,0.00052542,120]
[340685107,1729680435615,-687.24509782,0.000526,90]
[340685108,1729680435655,-255.0,0.000526,30]
[340685109,1729680435696,-929.7,0.00052602,120]
[340685110,1729680435735,-500.0,0.00052602,120]
[340685111,1729680435773,-500.0,0.00052602,120]
[340685112,1729680435812,-500.0,0.00052602,120]
[340685113,1729680435851,-1000.0,0.00052602,120]
[340685114,1729680435890,-500.0,0.00052602,120]
[340685115,1729680435930,-1250.0,0.00052602,120]
[340685116,1729680435969,-500.0,0.00052602,120]
[340685117,1729680436009,-500.0,0.00052602,120]
[340685118,1729680436047,-1369.54,0.00052602,120]
[340685119,1729680436085,-476.53992958,0.00052602,120]
[340685120,1729680436124,-1040.64,0.00052602,120]
[340685121,1729680436162,-500.0,0.00052602,120]
[340685122,1729680436200,-1829.92,0.00052602,120]
[340685123,1729680436241,-500.0,0.00052602,120]
[340685124,1729680436280,-1589.98,0.00052602,120]
[340685125,1729680436321,-4864.61,0.00052602,120]
[340685126,1729680436364,-1363.39,0.00052602,120]
[340685127,1729680436403,-500.0,0.00052602,120]
[340685128,1729680436443,-404.38998994,0.00052602,120]
[340685129,1729680436485,-500.0,0.00052602,120]
[340685130,1729680436523,-314.79,0.00052602,120]
[340685131,1729680436564,-500.0,0.00052602,120]
[340685132,1729680436604,-1000.0,0.00052602,120]
[340685133,1729680436644,-553.26,0.00052602,120]
[340685134,1729680436682,-1000.0,0.00052602,120]
[340685135,1729680436725,-500.0,0.00052602,120]
[340685136,1729680436765,-500.0,0.00052602,120]
[340685137,1729680436806,-565.55,0.00052602,120]